bitfinex/quotes_ETHUSD_20260131
["timestamp","ask_amount","ask_price","bid_price","bid_amount"]
[1769828665057,0.001,2702.7,2702.2,4.01700288]
[1769828665367,3.62318922,2702.7,2701.8,3.56880802]
[1769828665565,0.01117672,2702.6,2701.8,3.56880802]
[1769828665749,3.62218922,2702.4,2701.8,0.0011]
[1769828667730,0.92506938,2702.5,2701.8,3.56880802]
[1769828667930,1.18228705,2702.5,2701.8,3.56880802]
[1769828670768,1.18228705,2702.5,2701.9,3.56770802]
[1769828671951,1.18228705,2702.5,2701.8,0.0011]
[1769828674354,1.18228705,2702.5,2701.8,3.56880802]
[1769828676256,0.81404763,2702.4,2701.8,4.49410506]
[1769828677768,0.776,2702.6,2701.9,3.58917626]
[1769828678945,5.09856936,2702.6,2701.9,3.58917626]
[1769828679347,1.7010528,2702.6,2701.9,3.58917626]
[1769828679867,2.58212297,2702.6,2701.9,3.58917626]
[1769828685079,0.001,2702.4,2702.0,3.59966288]
[1769828686152,0.001,2702.6,2702.0,3.59966288]
[1769828687787,0.001,2702.6,2702.2,3.59966288]
[1769828688990,0.001,2702.6,2702.2,4.42224147]
[1769828690492,0.001,2702.6,2702.2,5.34739928]
[1769828692890,0.001,2702.6,2702.2,4.42224147]
[1769828693074,0.001,2702.6,2702.2,3.59966288]
[1769828696498,0.001,2702.6,2702.4,0.0011]
[1769828700894,0.001,2702.7,2702.4,0.0011]
[1769828701302,0.001,2703.2,2702.4,3.60076288]
[1769828701671,0.001,2703.6,2702.5,3.59966288]
[1769828701873,0.001,2703.6,2702.7,3.59966288]
[1769828702290,0.92569944,2703.6,2702.7,3.59966288]
[1769828702510,4.323216,2703.6,2702.7,3.59966288]
[1769828703084,3.39851656,2703.6,2702.8,0.9249667]
[1769828703284,0.001,2703.6,2702.9,4.06215114]
[1769828703702,9.17351656,2704.2,2703.0,3.59966288]
[1769828704006,9.17351656,2704.2,2703.2,3.59966288]
[1769828704197,10.09800699,2704.2,2703.2,3.59966288]
[1769828704516,3.40869328,2704.1,2703.2,3.59966288]
[1769828705182,4.32205563,2704.1,2703.3,0.92479562]
[1769828705384,5.20165633,2704.1,2703.3,0.92479562]
[1769828706919,5.20165633,2704.1,2703.3,4.25825067]
[1769828707618,3.39751656,2704.1,2703.4,3.33345505]
[1769828708296,4.32204259,2704.1,2703.4,3.33345505]
[1769828708819,0.001,2703.9,2703.4,3.33345505]
[1769828710041,0.001,2703.9,2703.6,3.33345505]
[1769828710830,0.001,2704.2,2703.6,3.33345505]
[1769828711028,0.51490683,2704.8,2703.8,3.33345505]
[1769828711218,0.32183113,2704.8,2703.8,3.33345505]
[1769828711729,1.24611568,2704.8,2703.8,3.33345505]
[1769828711895,1.24611568,2704.8,2704.0,3.33345505]
[1769828712099,1.24611568,2704.8,2704.1,3.33345505]
[1769828712728,0.32183113,2704.8,2704.1,3.33345505]
[1769828714043,0.32183113,2704.8,2704.2,0.92448783]
[1769828714328,0.32183113,2704.8,2704.3,3.33345505]
[1769828714629,0.32183113,2704.8,2704.4,0.42579429]
[1769828715325,0.001,2705.1,2704.4,0.42579429]
[1769828715527,0.001,2705.1,2704.5,3.33345505]
[1769828718650,0.001,2705.1,2704.3,4.25788054]
[1769828720231,3.60420921,2704.7,2703.9,0.37592733]
[1769828720400,3.60420921,2704.7,2703.9,0.92458775]
[1769828721228,3.60420921,2704.7,2703.8,0.92460177]
[1769828721412,3.60420921,2704.7,2703.7,1.35046108]
[1769828721612,3.60420921,2704.5,2703.7,1.35046108]
[1769828722137,3.60420921,2704.4,2703.7,1.35046108]
[1769828722432,3.60420921,2704.4,2703.7,0.42581823]
[1769828722604,4.05818727,2704.4,2703.6,0.92469211]
[1769828722798,4.05818727,2704.4,2703.4,0.92583988]
[1769828723199,4.05818727,2704.4,2703.4,0.0011]
[1769828723440,3.60420921,2704.2,2703.4,0.0011]
[1769828723732,3.60420921,2704.2,2703.4,0.42731928]
[1769828723903,0.01117672,2704.1,2703.4,0.0011]
[1769828724103,0.92458855,2704.0,2703.4,0.0011]
[1769828724300,3.60420921,2703.9,2703.4,0.0011]
[1769828725137,0.92458855,2704.0,2703.4,0.0011]
[1769828725339,4.52879776,2704.0,2703.4,0.0011]
[1769828725533,3.60420921,2703.9,2703.1,0.0011]
[1769828725741,3.61538593,2703.9,2703.1,0.0011]
[1769828726333,3.61538593,2703.7,2702.6,0.92503018]
[1769828726543,3.61538593,2703.7,2702.6,1.38766543]
[1769828728107,3.61538593,2703.7,2702.7,0.9249949]
[1769828728319,3.60420921,2703.5,2702.7,0.9249949]
[1769828728636,3.60420921,2703.5,2702.7,1.76713007]
[1769828729016,3.60420921,2703.5,2702.7,0.84213517]
[1769828730632,0.9247593,2703.5,2702.7,0.84213517]
[1769828730836,3.60420921,2703.4,2702.7,0.84213517]
[1769828731624,3.60420921,2703.4,2702.7,1.76712854]
[1769828733059,3.60420921,2703.4,2702.7,0.84213517]
[1769828733426,3.60420921,2703.4,2702.9,0.0011]
[1769828733661,4.05818727,2703.4,2702.9,0.0011]
[1769828733960,4.98295323,2703.4,2702.9,0.0011]
[1769828734862,4.05818727,2703.4,2702.9,0.0011]
[1769828738380,0.45397806,2703.4,2702.9,3.4509328]
[1769828738681,0.92467579,2703.7,2702.9,3.4509328]
[1769828741141,0.92467579,2703.7,2703.0,3.4498328]
[1769828743253,3.59891171,2703.6,2702.9,0.0011]
[1769828745666,0.9247272,2703.5,2703.1,0.0011]
[1769828745872,0.9257272,2703.5,2703.1,0.0011]
[1769828746447,4.52463891,2703.5,2703.1,0.0011]
[1769828746653,3.59891171,2703.4,2703.1,0.0011]
[1769828746952,4.421256,2703.4,2703.1,0.0011]
[1769828747884,3.59891171,2703.3,2702.9,0.0011]
[1769828748171,3.59891171,2703.3,2702.6,0.0011]
[1769828748375,3.59891171,2703.1,2702.6,0.0011]
[1769828749779,3.59891171,2702.9,2702.6,0.0011]
[1769828749948,0.9249667,2702.8,2702.6,0.0011]
[1769828755885,4.52386798,2702.9,2702.6,0.0011]
[1769828757389,4.52386798,2702.9,2702.8,0.0011]
[1769828757683,5.11567413,2702.9,2702.6,0.0011]
[1769828758682,0.59180615,2702.9,2702.6,0.0011]
[1769828758865,1.69991674,2703.0,2702.6,0.0011]
[1769828760483,0.92491674,2703.0,2702.6,0.0011]
[1769828760682,0.92491674,2703.0,2702.6,3.4509328]
[1769828761593,1.69988841,2703.1,2702.6,3.4509328]
[1769828761888,1.69988841,2703.1,2702.6,0.0011]
[1769828762072,0.79592524,2703.0,2702.6,0.0011]
[1769828765991,1.7208458,2703.0,2702.6,0.0011]
[1769828769093,4.98112398,2703.0,2702.6,0.0011]
[1769828769298,3.26027818,2702.9,2702.5,0.0011]
[1769828769594,1.73202252,2703.0,2702.5,0.0011]
[1769828769595,3.75950825,2702.8,2702.5,0.0011]
[1769828769777,3.26027818,2702.8,2702.5,0.0011]
[1769828770970,0.92500092,2702.7,2702.5,0.0011]
[1769828773409,3.26027818,2702.7,2702.5,0.0011]
[1769828773696,3.26027818,2702.7,2701.8,0.0011]
[1769828773899,3.26027818,2702.5,2701.8,0.0011]
[1769828774103,3.26027818,2702.3,2701.8,0.0011]
[1769828774403,0.40464549,2702.2,2701.8,0.0011]
[1769828775386,1.32983608,2702.2,2701.8,0.0011]
[1769828777105,4.59011426,2702.2,2701.8,0.0011]
[1769828780878,4.59011426,2702.2,2702.0,0.0011]
[1769828781079,4.59011426,2702.2,2701.8,0.0011]
[1769828781281,0.68937273,2702.1,2701.8,0.0011]
[1769828781477,1.61459993,2702.1,2701.8,0.0011]
[1769828782798,0.68937273,2702.1,2701.8,0.0011]
[1769828782991,0.92519784,2702.2,2701.8,0.0011]
[1769828783876,3.70058142,2702.3,2701.8,0.0011]
[1769828788787,2.88304676,2702.5,2701.8,3.32328738]
[1769828788987,0.32304676,2702.5,2701.8,3.32328738]
[1769828789312,0.001,2702.8,2701.9,3.32218738]
[1769828789499,0.001,2702.8,2701.9,3.65451612]
[1769828790410,0.92597154,2702.8,2701.9,3.65451612]
[1769828792392,0.001,2702.8,2702.0,0.92524056]
[1769828792584,0.001,2702.8,2702.1,3.32218738]
[1769828792785,0.001,2702.8,2702.2,0.42474279]
[1769828793583,0.001,2702.6,2702.2,0.42474279]
[1769828796616,0.001,2702.6,2702.2,3.67721324]
[1769828798807,0.001,2702.8,2702.3,3.17111507]
[1769828800422,0.001,2702.8,2702.2,0.42474279]
[1769828800594,0.001,2702.8,2702.0,0.92632284]
[1769828800595,3.35682468,2702.8,2702.0,0.92632284]
[1769828800994,3.35682468,2702.8,2702.0,4.09743791]
[1769828801207,3.35682468,2702.8,2702.0,3.17221507]
[1769828803791,0.92500092,2702.7,2702.0,3.17221507]
[1769828804592,0.92500092,2702.7,2702.0,4.09745446]
[1769828804895,0.92500092,2702.7,2702.1,0.44297832]
[1769828805131,0.92500092,2702.7,2702.2,0.0011]
[1769828805506,0.001,2702.6,2702.2,0.0011]
[1769828813912,3.35682468,2702.6,2702.0,0.0011]
[1769828814119,3.35582468,2702.4,2702.0,0.0011]
[1769828815043,0.92513784,2702.3,2702.0,0.0011]
[1769828817542,3.35582468,2702.3,2702.0,0.0011]
[1769828817921,3.35582468,2702.3,2702.2,0.0011]
[1769828818122,3.35582468,2702.3,2702.0,0.0011]
[1769828818336,0.42809283,2702.2,2702.0,0.0011]
[1769828818536,3.78391751,2702.2,2702.0,0.0011]
[1769828819452,0.42809283,2702.2,2702.0,0.0011]
[1769828821961,3.35582468,2702.1,2702.0,0.0011]
[1769828822147,3.35582468,2702.1,2701.8,0.0011]
[1769828824846,0.92524056,2702.0,2701.6,0.0011]
[1769828828359,4.13441178,2702.0,2701.6,0.0011]
[1769828828967,3.20917122,2701.9,2701.6,0.0011]
[1769828829150,1.33875023,2701.8,2701.6,0.0011]
[1769828829350,3.20917122,2701.7,2701.1,0.0011]
[1769828832948,0.92537755,2701.6,2701.1,0.0011]
[1769828835287,4.13454877,2701.6,2701.1,0.0011]
[1769828835449,0.78359617,2701.5,2701.1,0.0011]
[1769828838047,1.70903084,2701.5,2701.1,0.0011]
[1769828840782,0.92543467,2701.5,2701.1,0.0011]
[1769828840948,0.92540134,2701.6,2701.1,0.0011]
[1769828841274,0.92540134,2701.6,2701.3,0.0011]
[1769828842378,3.70142229,2701.7,2701.3,0.0011]
[1769828842594,0.41444118,2701.8,2701.3,3.37410615]
[1769828842748,3.70059238,2702.3,2701.4,3.37300615]
[1769828842950,0.92513784,2702.3,2701.6,3.37300615]
[1769828845787,3.20917122,2702.2,2701.3,0.0011]
[1769828845972,3.20917122,2701.7,2701.3,0.0011]
[1769828847781,4.13453545,2701.7,2701.3,0.0011]
[1769828847982,0.86220627,2701.6,2701.3,0.0011]
[1769828848177,3.20917122,2701.5,2701.3,0.0011]
[1769828848361,3.20917122,2701.5,2701.0,0.0011]
[1769828848562,3.20917122,2701.3,2700.9,0.0011]
[1769828848868,3.20917122,2701.2,2700.6,0.0011]
[1769828849483,0.86220627,2701.6,2700.8,3.37300615]
[1769828849683,4.13453545,2701.7,2700.9,3.37300615]
[1769828850055,4.14571217,2701.7,2700.9,3.37300615]
[1769828850694,0.92536423,2701.7,2700.9,3.37300615]
[1769828853595,6.91052171,2701.8,2700.9,3.37300615]
[1769828854594,6.91052171,2701.8,2701.1,0.0011]
[1769828854784,0.78358308,2701.7,2701.1,0.0011]
[1769828854979,0.78358308,2701.7,2700.9,3.37410615]
[1769828856596,0.92537755,2701.6,2700.9,3.06500964]
[1769828856788,0.92537755,2701.6,2700.9,2.75523497]
[1769828857665,0.92537755,2701.6,2700.9,2.12603713]
[1769828857889,1.78733441,2701.6,2700.9,2.12603713]
[1769828859573,4.89930943,2701.6,2700.9,2.12603713]
[1769828860594,4.89930943,2701.6,2700.9,0.0011]
[1769828866315,0.001,2701.5,2700.9,0.0011]
[1769828870707,0.001,2701.5,2700.9,3.33297791]
[1769828870908,0.001,2701.5,2701.1,3.33187791]
[1769828871215,0.92529773,2701.9,2701.1,3.33187791]
[1769828871520,4.81224843,2702.0,2701.1,3.33187791]
[1769828871714,5.91955832,2702.0,2701.1,3.70776192]
[1769828874116,2.8075833,2702.0,2701.1,4.63330613]
[1769828874350,3.11197502,2701.9,2701.1,4.63330613]
[1769828876318,4.03726782,2701.9,2701.1,4.63330613]
[1769828877997,4.03726782,2701.9,2701.1,4.63440613]
[1769828878318,0.001,2701.8,2701.1,4.63440613]
[1769828878502,0.001,2701.8,2701.2,0.83367277]
[1769828881296,0.001,2701.8,2701.2,1.75918505]
[1769828881499,0.001,2701.8,2701.3,3.33187791]
[1769828881955,3.11197502,2702.3,2701.4,3.33187791]
[1769828882236,3.12315174,2702.5,2701.6,3.33187791]
[1769828882541,3.11197502,2702.5,2701.6,3.33187791]
[1769828883301,3.01389353,2702.5,2701.7,0.9253433]
[1769828885039,3.93896317,2702.5,2701.7,0.9253433]
[1769828886435,3.93896317,2702.5,2701.7,3.33187791]
[1769828886635,3.01389353,2702.5,2701.7,3.6650657]
[1769828887742,3.93896996,2702.5,2701.7,3.6650657]
[1769828889408,3.93896996,2702.5,2701.7,4.59038161]
[1769828889820,3.93896996,2702.5,2701.9,0.0011]
[1769828890219,3.43822896,2702.4,2701.9,0.0011]
[1769828894371,4.36333356,2702.4,2701.9,0.0011]
[1769828894518,5.16978106,2702.4,2701.9,0.0011]
[1769828898960,1.7315521,2702.4,2701.9,0.0011]
[1769828899164,5.16978106,2702.4,2701.9,0.0011]
[1769828899376,3.43822896,2702.5,2701.9,0.0011]
[1769828900822,3.43822896,2702.3,2701.6,0.0011]
[1769828901826,3.43822896,2702.3,2701.9,0.0011]
[1769828902046,3.87567989,2702.2,2701.6,0.0011]
[1769828902253,3.43822896,2702.2,2701.6,0.0011]
[1769828902756,3.43822896,2702.0,2701.1,0.0011]
[1769828903054,4.22440568,2702.0,2701.1,0.0011]
[1769828903661,3.43822896,2701.8,2701.1,0.0011]
[1769828905555,3.43822896,2701.7,2701.1,0.0011]
[1769828908659,3.43822896,2701.6,2701.1,0.0011]
[1769828909937,3.43822896,2701.6,2700.9,0.0011]
[1769828910267,3.44940568,2701.6,2700.9,0.0011]
[1769828910565,3.43822896,2701.4,2700.9,0.0011]
[1769828911367,3.43822896,2701.3,2700.9,0.0011]
[1769828912467,0.92547183,2701.4,2700.9,0.0011]
[1769828912663,1.36291152,2701.5,2700.9,0.0011]
[1769828912962,0.43747532,2701.5,2700.9,0.0011]
[1769828913140,0.43747532,2701.5,2701.1,0.0011]
[1769828913336,0.48011038,2701.4,2701.1,0.0011]
[1769828914333,5.99822896,2702.1,2701.1,0.0011]
[1769828914535,5.13846952,2702.0,2701.1,3.15798764]
[1769828915666,0.775,2702.0,2701.3,3.15688764]
[1769828915864,0.775,2702.0,2701.3,3.9354437]
[1769828917971,1.70024171,2702.0,2701.3,3.9354437]
[1769828918577,1.70024171,2702.0,2701.3,4.86091674]
[1769828923787,5.11131258,2702.0,2701.3,1.7040291]
[1769828925087,0.001,2701.8,2701.3,1.7040291]
[1769828929069,3.41207087,2701.8,2701.3,1.7040291]
[1769828929265,3.41207087,2701.8,2701.3,0.92547304]
[1769828929459,3.41207087,2701.8,2701.1,0.92662581]
[1769828929661,3.41207087,2701.8,2701.2,0.92551068]
[1769828932675,3.41207087,2701.8,2701.1,0.0011]
[1769828936690,0.001,2701.6,2701.1,0.0011]
[1769828936884,0.001,2701.6,2701.1,0.80567667]
[1769828939099,0.001,2701.6,2701.2,0.92551458]
[1769828942472,3.41207087,2701.6,2701.2,0.92551458]
[1769828942810,0.001,2701.6,2701.2,0.92551458]
[1769828943003,3.41207087,2701.6,2701.1,0.0011]
[1769828943302,3.75337796,2701.6,2700.9,0.0011]
[1769828943482,3.41107087,2701.3,2700.9,0.0011]
[1769828948205,3.41107087,2701.3,2701.1,0.0011]
[1769828948512,3.84584024,2701.3,2701.1,0.0011]
[1769828949709,3.35813186,2701.2,2700.9,0.0011]
[1769828954277,4.28364999,2701.2,2700.9,0.0011]
[1769828954480,3.35813186,2701.1,2700.9,0.0011]
[1769828954680,3.8299738,2701.1,2700.9,0.0011]
[1769828960020,3.8309738,2701.1,2700.9,0.0011]
[1769828961394,0.001,2701.1,2700.9,0.0011]
[1769828965735,0.001,2701.6,2700.9,3.29526747]
[1769828968297,0.001,2701.6,2701.0,4.21975058]
[1769828971595,0.001,2701.6,2701.1,0.0011]
[1769828971798,0.001,2701.4,2701.1,0.79353613]
[1769828974601,0.001,2701.4,2701.2,0.92551458]
[1769828977344,0.001,2701.8,2701.3,3.2803703]
[1769828978402,0.001,2701.8,2701.2,0.92551458]
[1769828978826,0.001,2701.8,2701.2,4.14281812]
[1769828979139,0.001,2701.8,2701.3,0.86385205]
[1769828980835,0.001,2701.8,2701.4,0.92544606]
[1769828981334,0.001,2701.8,2701.4,4.1427496]
[1769828983139,0.001,2701.8,2701.4,0.92544606]
[1769828983838,0.001,2701.8,2701.4,0.92654606]
[1769828984038,0.001,2701.6,2701.5,0.54922212]
[1769828986650,0.001,2701.6,2701.5,1.47463392]
[1769828988840,0.001,2701.6,2701.5,0.54922212]
[1769828989641,0.001,2701.6,2701.4,0.92653802]
[1769828990840,0.001,2701.6,2701.4,0.0011]
[1769829003177,0.001,2701.6,2701.1,7.71293581]
[1769829003178,3.3510076,2701.6,2701.1,0.0011]
[1769829003738,0.001,2701.6,2701.1,0.92663694]
[1769829004233,0.33620076,2701.6,2701.1,0.92663694]
[1769829004634,3.68620836,2701.6,2701.1,0.92663694]
[1769829005968,3.68620836,2701.6,2701.1,0.0011]
[1769829008074,3.68620836,2701.6,2701.3,0.0011]
[1769829010153,0.33620076,2701.6,2701.3,0.0011]
[1769829010363,0.001,2701.8,2701.3,3.36420864]
[1769829013871,0.001,2701.8,2701.4,0.92544606]
[1769829020180,0.001,2701.6,2701.4,0.92544606]
[1769829020479,0.001,2701.6,2701.5,0.7991439]
[1769829021756,0.001,2701.8,2701.5,0.7991439]
[1769829022782,0.001,2701.8,2701.6,0.92537755]
[1769829039005,3.25087576,2701.8,2701.5,0.7991439]
[1769829039210,3.25087576,2701.8,2701.4,0.9254297]
[1769829040108,3.25087576,2701.8,2701.5,0.925406]
[1769829041069,3.25087576,2701.8,2701.3,0.0011]
[1769829043309,3.25087576,2701.8,2701.6,0.0011]
[1769829043812,0.001,2701.8,2701.6,0.0011]
[1769829050811,3.25087576,2701.8,2701.6,0.0011]
[1769829051017,3.25087576,2701.8,2701.4,0.0011]
[1769829052793,3.57596334,2701.8,2701.4,0.0011]
[1769829055993,3.57596334,2701.8,2701.6,0.0011]
[1769829060624,3.57596334,2701.8,2701.3,0.0011]
[1769829060812,3.24987576,2701.7,2701.1,0.0011]
[1769829061014,3.24987576,2701.5,2701.0,0.0011]
[1769829067532,3.24987576,2701.5,2701.2,0.0011]
[1769829071411,3.24987576,2701.5,2701.0,0.0011]
[1769829071412,3.46369446,2701.4,2701.0,0.0011]
[1769829071616,3.46369446,2701.2,2700.5,0.0011]
[1769829071816,3.46369446,2701.2,2700.1,3.34931624]
[1769829071817,3.46369446,2700.7,2700.1,0.0011]
[1769829072030,3.82124063,2700.6,2699.9,0.0011]
[1769829072237,3.46369446,2700.3,2699.8,0.0011]
[1769829072442,3.46369446,2700.1,2699.8,0.0011]
[1769829074554,3.46369446,2700.1,2699.3,4.27438228]
[1769829075672,3.46369446,2700.0,2699.1,3.34821624]
[1769829075833,3.46369446,2700.0,2699.2,0.92617805]
[1769829076020,3.46369446,2699.8,2699.2,0.9261715]
[1769829076218,3.46369446,2699.8,2699.1,3.70492429]
[1769829076737,3.46369446,2699.8,2699.0,0.92626898]
[1769829079755,3.46369446,2699.8,2699.2,0.0011]
[1769829083359,3.46369446,2699.7,2699.2,0.0011]
[1769829083562,4.03915636,2699.7,2699.2,0.0011]
[1769829084460,0.776,2699.8,2699.2,3.34931624]
[1769829084665,0.92591027,2700.1,2699.2,3.34931624]
[1769829085066,3.46369446,2700.4,2699.2,3.34931624]
[1769829085271,5.09036625,2700.5,2699.6,3.34821624]
[1769829085498,5.09036625,2700.5,2699.7,0.42743137]
[1769829086463,6.01612414,2700.5,2699.7,0.42743137]
[1769829086765,3.46369446,2700.4,2699.5,0.92609742]
[1769829087358,0.92582305,2700.3,2699.5,0.92609742]
[1769829087557,0.92582305,2700.3,2699.3,0.33493162]
[1769829087558,3.46369446,2700.2,2699.3,0.33493162]
[1769829087757,3.46369446,2700.0,2699.1,0.92623203]
[1769829088642,3.46369446,2700.0,2699.2,0.92729783]
[1769829089381,3.46369446,2699.9,2699.2,0.0011]
[1769829089556,3.81118158,2699.9,2699.2,0.0011]
[1769829089882,3.8223583,2699.9,2699.2,0.0011]
[1769829091489,3.47487118,2699.7,2699.2,0.0011]
[1769829091646,3.47487118,2699.7,2699.0,0.0011]
[1769829091861,3.46369446,2699.5,2699.0,0.0011]
[1769829100212,3.46369446,2699.5,2698.0,3.3119813]
[1769829100213,5.49817255,2699.3,2698.0,3.3119813]
[1769829100546,3.30365207,2698.9,2697.9,0.0011]
[1769829100669,3.30365207,2698.9,2697.8,0.73491542]
[1769829101166,3.29247535,2698.7,2697.7,3.70682937]
[1769829101369,3.29247535,2698.5,2697.7,3.70682937]
[1769829102504,3.29247535,2698.5,2697.7,0.92671535]
[1769829103107,4.06847535,2698.5,2697.4,0.92681379]
[1769829103407,3.29247535,2698.2,2697.3,0.92685277]
[1769829104878,3.29247535,2698.2,2697.6,0.0011]
[1769829105082,3.75151738,2698.2,2697.6,0.0011]
[1769829109634,0.37143567,2698.4,2697.6,3.3130813]
[1769829109937,3.29247535,2698.8,2697.6,3.3130813]
[1769829111717,3.29247535,2698.8,2697.8,3.3119813]
[1769829112106,4.21881748,2698.8,2697.8,3.3119813]
[1769829115051,3.29247535,2698.7,2697.9,0.92664665]
[1769829115249,0.44811177,2698.9,2698.0,3.3119813]
[1769829115569,3.74058712,2698.9,2698.0,3.3119813]
[1769829117363,3.29247535,2698.8,2698.1,0.92657796]
[1769829117536,3.75916508,2698.7,2698.0,0.9265876]
[1769829117736,0.001,2698.6,2698.0,0.9265876]
[1769829120382,0.001,2698.6,2697.9,3.70658388]
[1769829120531,0.001,2698.6,2698.0,3.3119813]
[1769829120869,4.06847535,2699.1,2698.3,3.3119813]
[1769829121941,0.001,2699.3,2698.3,3.3119813]
[1769829122450,0.001,2699.3,2698.5,3.3119813]
[1769829123740,0.001,2699.8,2698.6,3.3119813]
[1769829124059,0.001,2699.8,2698.6,3.73582692]
[1769829124665,0.001,2699.8,2698.8,3.3119813]
[1769829126062,0.001,2699.8,2698.9,3.3119813]
[1769829126269,0.001,2699.8,2699.1,3.3119813]
[1769829126482,0.31870044,2700.0,2699.2,3.3119813]
[1769829126678,0.31870044,2700.0,2699.4,3.29684418]
[1769829126859,0.31870044,2700.0,2699.6,3.29684418]
[1769829127064,1e-08,2700.0,2699.6,3.29684418]
[1769829127966,1e-08,2700.0,2699.3,0.92616604]
[1769829127967,3.39432942,2700.0,2699.3,0.92616604]
[1769829130774,1e-08,2700.0,2699.3,4.22301022]
[1769829130964,1e-08,2700.0,2699.4,0.79276744]
[1769829131138,1e-08,2700.0,2699.5,0.92609742]
[1769829132778,1e-08,2700.0,2699.6,3.29684418]
[1769829133576,1e-08,2700.0,2699.7,0.92602881]
[1769829133955,1e-08,2700.0,2699.7,4.22287299]
[1769829134158,1e-08,2700.0,2699.8,0.79269883]
[1769829135474,1e-08,2700.0,2699.8,4.08954301]
[1769829135778,1e-08,2700.0,2699.9,0.92596022]
[1769829150197,3.39432941,2700.9,2700.0,3.29684418]
[1769829150373,4.05017725,2700.9,2700.0,3.29684418]
[1769829151003,4.05017725,2700.9,2700.1,0.92589163]
[1769829152470,3.39432941,2700.8,2700.1,0.92589163]
[1769829153001,3.39432941,2700.7,2699.9,3.70379425]
[1769829153302,3.39432941,2700.7,2699.9,4.575724]
[1769829153501,3.39432941,2700.6,2699.7,0.92600457]
[1769829154092,3.39432941,2700.4,2699.7,0.92602496]
[1769829155478,3.39432941,2700.4,2699.4,0.92613173]
[1769829155666,0.92577739,2700.5,2699.5,3.29684418]
[1769829155667,3.39432941,2700.5,2699.5,3.29684418]
[1769829155866,5.95432941,2700.6,2699.5,3.29684418]
[1769829157089,3.39432941,2700.6,2699.5,3.29684418]
[1769829157297,3.39432941,2700.6,2699.7,3.29131703]
[1769829157796,3.39432941,2700.6,2699.8,0.92599451]
[1769829158798,0.9257228,2700.6,2699.8,0.92599451]
[1769829159102,3.23174178,2700.5,2699.8,0.92599451]
[1769829160708,3.23174178,2700.5,2699.7,3.70399313]
[1769829161006,3.23174178,2700.5,2699.8,0.83796234]
[1769829166315,3.23174178,2700.5,2699.9,0.92596022]
[1769829166616,0.001,2700.3,2699.9,0.92596022]
[1769829170816,3.23274178,2700.3,2699.8,1.76393377]
[1769829171113,3.23274178,2700.3,2699.8,0.92597143]
[1769829173023,3.23274178,2700.3,2699.7,3.70509313]
[1769829176103,3.23274178,2700.3,2699.7,4.54327547]
[1769829178923,3.23274178,2700.3,2699.9,0.0011]
[1769829179725,0.001,2700.1,2699.9,0.0011]
[1769829188930,0.001,2700.1,2699.7,0.0011]
[1769829188931,3.1486632,2700.1,2699.7,0.0011]
[1769829189132,3.47093738,2700.0,2699.7,0.0011]
[1769829192465,0.32327418,2700.0,2699.7,0.0011]
[1769829193640,0.32327418,2700.0,2699.9,0.0011]
[1769829201083,0.001,2700.1,2699.9,0.0011]
[1769829201243,3.337,2700.7,2699.9,3.31162521]
[1769829202478,0.777,2700.7,2699.9,3.31162521]
[1769829203291,1.8882906,2700.7,2700.0,0.92592592]
[1769829205093,6.26256289,2700.9,2700.0,0.92592592]
[1769829205094,0.28492208,2701.1,2700.2,3.31052521]
[1769829205381,0.01217672,2701.3,2700.2,3.31052521]
[1769829205382,0.001,2701.3,2700.6,3.31052521]
[1769829205582,0.001,2701.3,2700.8,3.31052521]
[1769829207258,0.001,2701.3,2700.9,0.92561738]
[1769829211168,0.001,2701.3,2700.9,4.23614259]
[1769829215483,0.001,2701.6,2701.0,3.31052521]
[1769829215723,0.001,2701.6,2701.1,1.34916311]
[1769829219185,0.001,2701.4,2701.1,1.34916311]
[1769829226217,3.14375395,2702.1,2701.2,3.14179962]
[1769829226379,3.14375395,2702.1,2701.3,0.44909627]
[1769829227180,1.71332059,2702.3,2701.3,3.59089589]
[1769829227419,0.01117672,2702.1,2701.3,3.14179962]
[1769829228006,3.14375395,2702.1,2701.3,3.14179962]
[1769829228223,3.92075395,2702.3,2701.4,4.06724568]
[1769829228391,3.92075395,2702.3,2701.5,0.77690299]
[1769829230683,3.92075395,2702.3,2701.6,0.92537755]
[1769829231110,0.001,2701.9,2701.6,0.92537755]
[1769829235613,0.001,2701.9,2701.7,3.14179962]
[1769829235936,0.001,2701.9,2701.8,0.40671772]
[1769829236510,0.001,2702.3,2701.8,3.54851734]
[1769829236719,0.2813013,2702.4,2702.0,3.14179962]
[1769829237099,0.9247715,2703.4,2702.0,3.14179962]
[1769829237100,10.251,2703.5,2702.2,3.14179962]
[1769829237290,0.01117672,2703.4,2702.2,3.14179962]
[1769829237491,0.01117672,2703.4,2702.4,3.14179962]
[1769829237492,3.14375395,2703.4,2702.4,3.14179962]
[1769829237892,0.01117672,2703.2,2702.4,3.14179962]
[1769829238988,0.001,2703.5,2702.5,3.14179962]
[1769829239192,0.01117672,2703.6,2703.5,0.9247272]
[1769829239390,0.3163029,2704.1,2703.5,0.9247272]
[1769829239921,0.3163029,2704.1,2703.6,3.14179962]
[1769829240121,0.01117672,2704.7,2703.7,3.14179962]
[1769829240337,0.01117672,2704.7,2703.5,4.06652682]
[1769829240338,0.86229036,2704.4,2703.5,4.06652682]
[1769829240622,0.01117672,2704.5,2703.5,0.9247272]
[1769829240623,0.90878845,2704.3,2703.5,0.9247272]
[1769829241323,0.90878845,2704.3,2703.5,3.14179962]
[1769829241622,2.51182362,2704.5,2703.5,3.14179962]
[1769829241931,1.57929286,2704.5,2703.5,3.14179962]
[1769829242427,0.92440739,2704.5,2703.5,3.14179962]
[1769829242723,0.93253076,2704.7,2703.5,3.14179962]
[1769829242909,0.92430508,2704.8,2703.5,3.14179962]
[1769829243108,0.18923451,2704.7,2703.6,3.14179962]
[1769829243498,0.001,2704.3,2703.8,3.14179962]
[1769829245615,0.001,2704.3,2703.8,4.06641542]
[1769829246113,0.001,2704.3,2703.9,3.14179962]
[1769829246423,0.001,2704.9,2704.0,3.14179962]
[1769829247438,0.001,2704.9,2704.2,3.64591696]
[1769829248234,0.001,2704.9,2704.0,3.69808808]
[1769829248235,1.1668724,2704.9,2704.0,4.57046473]
[1769829248441,1.1668724,2704.9,2703.6,4.57059722]
[1769829248442,1.20884631,2704.6,2703.6,4.57059722]
[1769829248730,1.20884631,2704.6,2703.7,3.64591696]
[1769829249400,1.20884631,2704.6,2703.8,3.64591696]
[1769829249625,1.20884631,2704.6,2703.8,4.57053619]
[1769829250362,1.20884631,2704.6,2703.8,3.64591696]